Cogmind - Beta 11.1 @@@ ROGUE MODE // 2022.10.01 @ 23:45:35 Player: DuckBoy Result: Destroyed by S-27 Virus with Autogun Performance ------------- Evolutions (5) 2500 Regions Visited (15) 3000 Robots Destroyed (136) 680 Value Destroyed (4314) 4314 Prototype IDs (7) 140 Alien Tech Used (0) 0 Bonus (670) 670 TOTAL SCORE: 11304 Bonus ------- High Alert Combat Kills 281 Follower Combat Kills 496 Friendly Fire -107 Cogmind --------- Core Integrity 0/1000 Matter 290/300 Energy 90/100 System Corruption 0% Temperature Cool (2) Movement Hovering (110) Ox1 Location -5/Upper Caves Parts ------- > --- POWER (2) -------- (None) > --- PROPULSION (5) --- Gyrokinetic Inverter > --- UTILITY (8) ------ Medium Storage Unit Hacking Suite Improved Hacking Suite > --- WEAPON (2) ------- Lance > --- INVENTORY (10) --- Light Nuclear Core Light Nuclear Core Improved Cooling System Large Storage Unit Plasma Rifle KE Penetrator Improved Remote Datajack Improved Plasma Cutter Ripper Peak State ------------ > --- POWER ------------ Angular Momentum Engine > --- PROPULSION ------- Flexi-carbon Leg Flexi-carbon Leg Flexi-carbon Leg Flexi-carbon Leg Combat Gravmag System > --- UTILITY ---------- Large Storage Unit Enhanced Optical Array Advanced Targeting Computer Hacking Suite Hacking Suite Makeshift Hacking Suite System Shield > --- WEAPON ----------- Gatling Laser KE Penetrator > --- INVENTORY -------- Gravmag System Improved Airjet Cooled Airjet Combat Gravmag System Combat Gravmag System Combat Gravmag System Improved Cooling System Hardened Light Armor Plating Hacking Suite Hacking Suite System Shield Plasma Rifle Phase Cannon Shock Bomb Launcher Chainsword [Rating: 69] Favorites ----------- Power Micro Nuclear Core Engine Ion Engine Power Core Micro Nuclear Core Propulsion Improved Airjet Treads Light Treads Leg Flexi-carbon Leg Wheel Armored Huge Wheel Hover Unit Improved Airjet Flight Unit VTOL Module Utility Hacking Suite Device Advanced Heat Sink Storage Large Storage Unit Processor Targeting Computer Hackware Hacking Suite Protection Hardened Light Armor Plating Weapon KE Penetrator Energy Gun Gatling Laser Energy Cannon Heavy Ion Cannon Ballistic Gun KE Penetrator Launcher Shock Bomb Launcher Slashing Weapon Chainsword Piercing Weapon Lance Special Melee Weapon Improved Datajack Build | -11 -10 -10 -9 -8 -7 -7 -7 -7 -6 -6 -6 -6 -5 -5 -5 ------- Run | Scr Mat Min Mat Mat Fac Low Low Zio Pro Fac Low Low Fac Upp Upp Slots Evolved 10 | . . . 2 2 2 . . . . 2 . . 2 . . Power 1 | . . . . . . . . . . . . . 1 . . Propulsion 3 | . . . 2 1 . . . . . . . . . . . Utility 6 | . . . . 1 2 . . . . 2 . . 1 . . Weapon . | . . . . . . . . . . . . . . . . Parts Attached 142 | 6 4 5 15 20 22 2 . . 3 27 7 11 6 12 2 Power 17 | 1 . . 2 4 2 . . . 1 2 . 2 1 2 . Engine 7 | 1 . . 2 2 . . . . . 2 . . . . . Core 10 | . . . . 2 2 . . . 1 . . 2 1 2 . Reactor . | . . . . . . . . . . . . . . . . Propulsion 58 | 2 2 3 6 10 8 . . . . 10 7 3 2 5 . Treads 4 | 2 2 . . . . . . . . . . . . . . Leg 23 | . . 3 6 1 . . . . . 6 2 1 . 4 . Wheel 4 | . . . . 4 . . . . . . . . . . . Hover 25 | . . . . 5 8 . . . . 4 5 1 2 . . Flight 2 | . . . . . . . . . . . . 1 . 1 . Utility 20 | 1 . . 3 2 3 . . . . 4 . 2 1 3 1 Device 2 | . . . . . . . . . . . . . . 2 . Storage 7 | 1 . . 2 . 1 . . . . . . 1 . 1 1 Processor 5 | . . . 1 2 . . . . . 2 . . . . . Hackware 5 | . . . . . 2 . . . . 2 . . 1 . . Protection 1 | . . . . . . . . . . . . 1 . . . Artifact . | . . . . . . . . . . . . . . . . Weapon 47 | 2 2 2 4 4 9 2 . . 2 11 . 4 2 2 1 Energy Gun 13 | 1 1 . 3 1 2 . . . 1 4 . . . . . Energy Cannon 2 | . . . . . 1 . . . . . . 1 . . . Ballistic Gun 17 | 1 1 1 1 2 3 1 . . 1 4 . 1 . 1 . Ballistic Cannon . | . . . . . . . . . . . . . . . . Launcher 5 | . . . . 1 1 . . . . 1 . 1 1 . . Special Weapon . | . . . . . . . . . . . . . . . . Impact Weapon . | . . . . . . . . . . . . . . . . Slashing Weapon 7 | . . . . . 2 1 . . . 2 . 1 . 1 . Piercing Weapon 2 | . . . . . . . . . . . . . 1 . 1 Special Melee Weapon 1 | . . 1 . . . . . . . . . . . . . Unidentified Prototypes 7 | . . . 2 2 3 . . . . . . . . . . Corrupted Parts 2 | . . 1 . . . . . . . . . 1 . . . System Corruption 9 | . . 5 . . . . . . . . . 4 . . . Parts Lost 36 | . . . 3 1 . . . . . 7 . 11 4 4 6 Power 3 | . . . . . . . . . . 1 . 1 . 1 . Propulsion 19 | . . . 2 1 . . . . . 4 . 3 4 1 4 Utility 8 | . . . . . . . . . . . . 5 . 1 2 Weapon 6 | . . . 1 . . . . . . 2 . 2 . 1 . Highest Loss Streak 11 | . . . 1 1 . . . . . 3 . 11 2 4 6 To Critical Strikes . | . . . . . . . . . . . . . . . . Average Slot Usage (%) 87 | . 81 85 90 86 99 100 100 92 100 99 81 53 36 67 64 Engine 4 | . 14 14 11 4 2 . . . . 5 . . . . . Core 2 | . . . . 4 4 7 7 7 7 . . 2 4 4 3 Treads 1 | . 26 6 . . . . . . . . . . . . . Leg 11 | . . 21 34 15 . . . . . 12 10 6 1 16 17 Hover 16 | . . . . 6 38 38 38 38 38 19 10 5 7 5 5 Storage 7 | . 14 14 11 9 7 7 7 7 7 6 6 1 . 4 5 Processor 10 | . . . 10 17 15 15 15 15 15 13 13 9 5 5 3 Hackware 12 | . . . . . 15 15 15 15 15 26 26 13 5 11 11 Energy Gun 6 | . 12 14 15 11 7 7 7 . 7 4 6 1 . . . Ballistic Gun 5 | . 12 11 6 6 4 . . . 7 7 . . . 4 3 Slashing Weapon 1 | . . . . . . 7 7 7 . . 6 5 1 . . Naked Turns . | . . . . . . . . . . . . . . . . Heaviest Build 43 | 14 14 14 23 26 35 33 33 29 43 43 27 28 14 43 43 Greatest Support 80 | 40 40 40 52 62 54 54 54 54 54 80 58 40 20 65 65 Greatest Overweight (x) 2 | 1 . . . 2 . . . . . 1 . 2 1 . 1 Average Overweight (x) . | . . . . . . . . . . . . . . . . Largest Inventory Capacity 15 | 8 8 8 10 10 15 15 15 15 15 15 15 15 5 15 15 Average Capacity 11 | 6 8 8 8 10 10 15 15 15 15 15 15 8 5 13 13 Most Carried 15 | 3 5 8 10 10 14 14 14 15 15 15 15 14 5 8 10 Average Carried 10 | 2 3 7 8 9 10 12 14 15 14 14 14 6 4 6 8 Final Capacity 15 | 8 8 8 10 10 15 15 15 15 15 15 15 5 5 15 10 Final Carried 15 | 3 5 8 10 10 12 14 14 15 15 15 14 4 5 8 9 Class Distribution -------------------- 50% | Hacker-Mutant 28% | Scavenger-Mutant 20% | Mutant Dominant Class ---------------- Mutant | -10/Materials Mutant | -10/Mines Scavenger-Mutant | -9/Materials Scavenger-Mutant | -8/Materials Hacker-Mutant | -7/Factory Hacker-Mutant | -7/Lower Caves Hacker-Mutant | -7/Lower Caves Hacker-Mutant | -7/Zion Hacker-Mutant | -6/Proximity Caves Hacker-Mutant | -6/Factory Hacker-Mutant | -6/Lower Caves Scavenger-Mutant | -6/Lower Caves Mutant | -5/Factory Scavenger-Mutant | -5/Upper Caves Scavenger-Mutant | -5/Upper Caves Resources | -11 -10 -10 -9 -8 -7 -7 -7 -7 -6 -6 -6 -6 -5 -5 -5 ----------- Run | Scr Mat Min Mat Mat Fac Low Low Zio Pro Fac Low Low Fac Upp Upp Matter Collected 2807 | 236 66 138 213 301 448 50 . 8 62 786 64 93 . 332 10 Remotely . | . . . . . . . . . . . . . . . . Salvage Created 5468 | . 212 100 853 726 1097 20 . . 231 1410 36 54 368 294 67 Parts 315 | . 16 5 52 55 65 1 . . 2 85 2 4 17 6 5 Haulers Intercepted 9 | . 1 . 2 3 2 . . . . 1 . . . . . Recyclers Shooed 4 | . . . . . 1 . . . . 3 . . . . . Parts Field Recycled . | . . . . . . . . . . . . . . . . Retrieved Matter . | . . . . . . . . . . . . . . . . Parts Self-Destructed 24 | . . . . . . . . . 16 . . 2 . 1 5 Prevented 5 | . . . . . . . . . 2 . . . . 3 . Kills | -11 -10 -10 -9 -8 -7 -7 -7 -7 -6 -6 -6 -6 -5 -5 -5 ------- Run | Scr Mat Min Mat Mat Fac Low Low Zio Pro Fac Low Low Fac Upp Upp Combat Hostiles Destroyed 91 | . 5 2 13 18 15 . . . 3 19 . 2 9 2 3 Melee 6 | . . . . . . . . . . . . 1 . 2 3 Guns 63 | . 4 2 12 13 10 . . . 3 18 . 1 . . . AOE 21 | . 1 . 1 4 5 . . . . 1 . . 9 . . Classes Destroyed 14 | . 4 . 4 2 1 . . . . 1 1 . 1 . . Worker 11 | . . . 2 1 3 . . . . 4 . . 1 . . Builder 8 | . 1 . 1 . 1 . . . . 4 . . 1 . . Hauler 9 | . 1 . 2 3 2 . . . . 1 . . . . . Recycler 5 | . . . 2 . 2 . . . . 1 . . . . . Operator 3 | . . . 1 1 1 . . . . . . . . . . Watcher 9 | . . . . 1 4 . . . . 4 . . . . . Swarmer 31 | . 3 . 3 10 7 . . . 2 . . 2 . 1 3 Grunt 39 | . 2 2 7 6 4 . . . 1 9 . . 8 . . Brawler 1 | . . . . . . . . . . . . . 1 . . Sentry 7 | . . . 3 1 1 . . . . 1 . . . 1 . Hunter 7 | . . . . 1 1 . . . . 5 . . . . . Programmer 5 | . . . . . 2 . . . . 3 . . . . . Samaritan 1 | . . . . . . . . . . . 1 . . . . Fireman 1 | . . . . . . . . . . 1 . . . . . Best Kill Streak 12 | . 4 2 6 12 8 . . . 2 5 . 1 8 1 2 Combat Bots Only 9 | . 3 2 3 9 7 . . . 2 3 . 1 6 1 2 Max Kills in Single Turn 3 | . 1 1 1 2 2 . . . 1 2 1 1 3 1 1 Gunslinging . | . . . . . . . . . . . . . . . . Exploded 3 | . 1 . 1 2 2 . . . . 1 . . 3 . . Melee 1 | . . . . . . . . . . . . 1 . 1 1 Uniques/NPCs Destroyed . | . . . . . . . . . . . . . . . . Combat | -11 -10 -10 -9 -8 -7 -7 -7 -7 -6 -6 -6 -6 -5 -5 -5 -------- Run | Scr Mat Min Mat Mat Fac Low Low Zio Pro Fac Low Low Fac Upp Upp Damage Taken 7058 | . 184 141 648 535 770 . . . 17 1593 . 1191 793 420 766 Core 2232 | . 67 10 109 122 151 . . . 17 263 . 491 470 169 363 Absorbed by Shields 54 | . . . . . 24 . . . . . . . 30 . . Core Remaining (%) 67 | 100 . 69 72 77 . . . . 76 . . 11 . . . Volleys Fired 330 | . 14 12 57 49 71 . . . 10 102 . 3 12 . . Largest 2 | . 2 2 2 2 2 . . . 2 2 . 1 1 . . Hottest 136 | . 60 60 85 136 108 . . . 113 113 . 36 46 . . Shots Fired 579 | . 28 25 110 89 108 . . . 16 188 . 3 12 . . Gun 549 | . 28 25 110 85 96 . . . 16 187 . 2 . . . Cannon . | . . . . . . . . . . . . . . . . Launcher 30 | . . . . 4 12 . . . . 1 . 1 12 . . Special . | . . . . . . . . . . . . . . . . Kinetic 273 | . 14 12 25 27 45 . . . 8 140 . 2 . . . Thermal 217 | . . . 53 58 51 . . . 8 47 . . . . . Explosive 12 | . . . . . . . . . . . . . 12 . . Electromagnetic 77 | . 14 13 32 4 12 . . . . 1 . 1 . . . Robot Hit Streak 24 | . 5 6 7 22 16 . . . 9 24 . 1 7 . . Robot Miss Streak 9 | . 1 2 6 3 3 . . . 2 9 . 1 . . . Penetration Max 1 | . . . . . 1 . . . . 1 . . . . . Secondary Targets 4 | . . . 1 . 2 . . . . 1 . . . . . Max Gunslinging Chain 1 | . . . 1 . 1 . . . . 1 . . . . . Shots Hit Robots 409 | . 18 20 60 72 72 1 . . 11 125 2 6 7 12 3 Core Hits 253 | . 10 5 28 42 43 1 . . 11 75 . 2 27 6 3 Critical Kills 4 | . . . . 1 1 . . . . 2 . . . . . Critical Parts Destroyed 6 | . . . . 1 1 . . . . 4 . . . . . Critical Strikes 18 | . . . 3 3 5 . . . . 6 . . . . 1 Burn 7 | . . . 3 1 3 . . . . . . . . . . Destroy 10 | . . . . 2 2 . . . . 6 . . . . . Impale 1 | . . . . . . . . . . . . . . . 1 Melee Attacks 49 | . . 2 . . 6 1 . . . 2 3 6 2 23 4 Impact . | . . . . . . . . . . . . . . . . Slashing 22 | . . . . . 6 1 . . . 2 3 6 1 3 . Piercing 25 | . . . . . . . . . . . . . 1 20 4 Sneak Attacks 5 | . . 2 . . . . . . . . 2 . 1 . . Combat Hostiles . | . . . . . . . . . . . . . . . . Follow-up Attacks . | . . . . . . . . . . . . . . . . Damage Inflicted 11854 | . 328 242 992 1373 1809 72 . . 233 3943 134 246 1862 523 97 Guns 7666 | . 251 242 932 1216 1434 . . . 233 3312 . 46 . . . Cannons . | . . . . . . . . . . . . . . . . Explosions 3147 | . 77 . 50 157 375 . . . . 631 . 67 1790 . . Melee 1031 | . . . . . . 72 . . . . 134 133 72 523 97 Ramming 10 | . . . 10 . . . . . . . . . . . . Kinetic 4065 | . 114 122 280 308 653 . . . 112 2430 . 46 . . . Thermal 3929 | . 77 . 428 908 781 . . . 121 1513 . . 101 . . Explosive 1540 | . . . . . . . . . . . . . 1540 . . Electromagnetic 1279 | . 137 120 274 157 375 . . . . . . 67 149 . . Impact . | . . . . . . . . . . . . . . . . Slashing 533 | . . . . . . 72 . . . . 134 133 72 122 . Piercing 498 | . . . . . . . . . . . . . . 401 97 Highest Corruption 5 | . . 5 . . 1 1 1 1 . . . 4 . . . Average Corruption 2 | . . 5 . . 1 1 1 1 . . . 4 . . . Corruption Purged . | . . . . . . . . . . . . . . . . Corruption Blocked . | . . . . . . . . . . . . . . . . Effects 23 | . . 14 . . 4 1 1 . . . . 3 . . . Message Errors 5 | . . 2 . . . 1 . . . . . 2 . . . Matter Fused 4 | . . 2 . . . . 1 . . . . 1 . . . Heat Flow Errors 2 | . . 1 . . 1 . . . . . . . . . . Energy Discharges 3 | . . 3 . . . . . . . . . . . . . Parts Rejected 1 | . . . . . 1 . . . . . . . . . . Data Loss (minor) 3 | . . 2 . . 1 . . . . . . . . . . Data Loss (major) 3 | . . 3 . . . . . . . . . . . . . Misfires 2 | . . 1 . . 1 . . . . . . . . . . Overload Shots 4 | . . . . . 4 . . . . . . . . . . Overflow Damage 404 | . 12 . . . 2 . . . . 129 97 38 87 39 . Projectiles . | . . . . . . . . . . . . . . . . Explosions 198 | . 12 . . . 2 . . . . 129 . . 55 . . Melee 206 | . . . . . . . . . . . 97 38 32 39 . Knockbacks . | . . . . . . . . . . . . . . . . Impact . | . . . . . . . . . . . . . . . . Kinetic . | . . . . . . . . . . . . . . . . Secondary . | . . . . . . . . . . . . . . . . Self-Inflicted Damage 147 | . 52 . 40 . 55 . . . . . . . . . . Shots 7 | . 1 . 1 . 5 . . . . . . . . . . Rammed . | . . . . . . . . . . . . . . . . Targets Rammed 2 | . . . 2 . . . . . . . . . . . . Kicked 2 | . . . 2 . . . . . . . . . . . . Crushed . | . . . . . . . . . . . . . . . . Highest Temperature 586 | . 36 123 126 586 237 . . . 153 213 . . 14 . . Average Temperature 77 | . 20 46 39 160 50 . . . 49 65 . . 9 . . Received Heat Transfer 1620 | . 63 66 273 135 114 . . . . 294 . 237 213 126 99 Effects 9 | . . . . 6 . . . . . 3 . . . . . Energy Bleed 1 | . . . . 1 . . . . . . . . . . . Interference 6 | . . . . 3 . . . . . 3 . . . . . Short Circuit 2 | . . . . 2 . . . . . . . . . . . Siege Activations . | . . . . . . . . . . . . . . . . Robots Corrupted . | . . . . . . . . . . . . . . . . Combat Hostiles . | . . . . . . . . . . . . . . . . Parts Fried 4 | . . . . 1 2 . . . . . . . 1 . . Impact Corruptions . | . . . . . . . . . . . . . . . . Robots Melted 1 | . . . . 1 . . . . . . . . . . . Combat Hostiles 1 | . . . . 1 . . . . . . . . . . . Parts Melted 14 | . . . 1 4 2 . . . 1 3 . . . . 3 Heat Transferred 7823 | . 50 . 1177 2090 1668 . . . 275 2463 . . 100 . . Parts Sabotaged . | . . . . . . . . . . . . . . . . Parts Stolen . | . . . . . . . . . . . . . . . . Parts Stripped . | . . . . . . . . . . . . . . . . Power Chain Reactions 3 | . 2 . 1 . . . . . . . . . . . . Missiles Intercepted . | . . . . . . . . . . . . . . . . Alert | -11 -10 -10 -9 -8 -7 -7 -7 -7 -6 -6 -6 -6 -5 -5 -5 ------- Run | Scr Mat Min Mat Mat Fac Low Low Zio Pro Fac Low Low Fac Upp Upp Peak Influence 653 | . 207 145 398 626 625 . . . . 653 . . 584 . . Initial 341 | . . 80 . 150 246 . . . . 341 . . 88 . . Average 251 | . 145 50 215 365 416 . . . . 206 . . 335 . . Maximum Alert Level 2 | . 1 . 1 2 2 . . . . 2 . . 2 . . Low Security (%) 44 | 100 52 100 39 29 . . . . . 56 . . 38 . . Level 1 31 | . 47 . 60 16 44 . . . . 32 . . 19 . . Level 2 23 | . . . . 53 55 . . . . 10 . . 41 . . Level 3 . | . . . . . . . . . . . . . . . . Level 4 . | . . . . . . . . . . . . . . . . Level 5 . | . . . . . . . . . . . . . . . . High Security . | . . . . . . . . . . . . . . . . Max Security . | . . . . . . . . . . . . . . . . Squads Dispatched 21 | . 1 . 2 2 8 . . . . 7 . . 1 . . Investigation 5 | . . . . . 3 . . . . 1 . . 1 . . Extermination 3 | . . . . . 2 . . . . 1 . . . . . Reinforcement 12 | . 1 . 2 2 3 . . . . 4 . . . . . Assault 1 | . . . . . . . . . . 1 . . . . . Garrison . | . . . . . . . . . . . . . . . . Intercept . | . . . . . . . . . . . . . . . . Searches Triggered . | . . . . . . . . . . . . . . . . Construction Impeded 4 | . . . . . 2 . . . . 2 . . . . . Haulers Reinforced 1 | . . . . . . . . . . 1 . . . . . Active Scanning Responses . | . . . . . . . . . . . . . . . . Cargo Convoy Interrupts 1 | . . . . . . . . . . 1 . . . . . Stealth | -11 -10 -10 -9 -8 -7 -7 -7 -7 -6 -6 -6 -6 -5 -5 -5 --------- Run | Scr Mat Min Mat Mat Fac Low Low Zio Pro Fac Low Low Fac Upp Upp Distress Signals 5 | . . . 2 . 1 . . . . . . . 2 . . Communications Jammed . | . . . . . . . . . . . . . . . . Distress Signals . | . . . . . . . . . . . . . . . . Times Spotted 181 | . 7 2 21 23 38 . . . 12 29 . 7 20 8 14 Peak Tracking Total 9 | . 3 2 3 9 4 . . . 4 3 . 7 9 7 9 Tactical Retreats 23 | . 1 1 3 1 6 . . . 3 2 . 1 3 . 2 Traps | -11 -10 -10 -9 -8 -7 -7 -7 -7 -6 -6 -6 -6 -5 -5 -5 ------- Run | Scr Mat Min Mat Mat Fac Low Low Zio Pro Fac Low Low Fac Upp Upp Traps Triggered 11 | . 1 1 . . 5 . . . . 3 . . 1 . . Indirectly 2 | . . . . . 2 . . . . . . . . . . Trap Hack Attempts 7 | . . 7 . . . . . . . . . . . . . Triggered . | . . . . . . . . . . . . . . . . Disarmed . | . . . . . . . . . . . . . . . . Reprogrammed 1 | . . 1 . . . . . . . . . . . . . Reused . | . . . . . . . . . . . . . . . . Traps Extracted . | . . . . . . . . . . . . . . . . Installed . | . . . . . . . . . . . . . . . . Triggered 8 | . . . . . . . . . 1 2 1 . . 2 2 Exploded 1 | . . . . . 1 . . . . . . . . . . Machines | -11 -10 -10 -9 -8 -7 -7 -7 -7 -6 -6 -6 -6 -5 -5 -5 ---------- Run | Scr Mat Min Mat Mat Fac Low Low Zio Pro Fac Low Low Fac Upp Upp Machines Disabled 25 | . 1 . 1 3 1 . . . . 14 . . 5 . . Max in Single Turn 8 | . 1 . 1 1 1 . . . . 8 . . 4 . . Garrison Access 5 | . . . . 1 3 . . . . 1 . . . . . Machines Sabotaged . | . . . . . . . . . . . . . . . . Garrisons Compromised 1 | . . . . . . . . . . 1 . . . . . Overloaded Fab Kills . | . . . . . . . . . . . . . . . . Hacking | -11 -10 -10 -9 -8 -7 -7 -7 -7 -6 -6 -6 -6 -5 -5 -5 --------- Run | Scr Mat Min Mat Mat Fac Low Low Zio Pro Fac Low Low Fac Upp Upp Machines Accessed 36 | . . 1 4 3 14 . . . . 8 1 . 5 . . Terminals 22 | . . . 3 2 9 . . . . 4 . . 4 . . Fabricators 5 | . . . . . 2 . . . . 2 . . 1 . . Repair Stations . | . . . . . . . . . . . . . . . . Recycling Units 1 | . . . . . . . . . . 1 . . . . . Scanalyzers 2 | . . . 1 . . . . . . 1 . . . . . Garrison Access 4 | . . . . 1 3 . . . . . . . . . . Total Hacks 97 | . . 1 11 9 34 . . . . 26 1 . 15 . . Successful 58 | . . 1 7 3 20 . . . . 20 1 . 6 . . Failed 39 | . . . 4 6 14 . . . . 6 . . 9 . . Catastrophic 7 | . . . 1 1 3 . . . . . . . 2 . . Database Lockouts . | . . . . . . . . . . . . . . . . Manual 32 | . . . 5 4 14 . . . . 5 . . 4 . . Terminals 60 | . . . 4 5 23 . . . . 15 . . 13 . . Fabricators 14 | . . . . . 5 . . . . 7 . . 2 . . Repair Stations . | . . . . . . . . . . . . . . . . Recycling Units 2 | . . . . . . . . . . 2 . . . . . Scanalyzers 9 | . . . 7 . . . . . . 2 . . . . . Garrison Access 10 | . . . . 4 6 . . . . . . . . . . Terminal Hacks 29 | . . 1 1 1 8 . . . . 12 1 . 5 . . Part Schematic 11 | . . . . 1 4 . . . . 4 . . 2 . . Robot Schematic 2 | . . . 1 . . . . . . 1 . . . . . Open Door 2 | . . 1 . . . . . . . . 1 . . . . Branch Access Points 3 | . . . . . 1 . . . . 1 . . 1 . . Terminal Index 1 | . . . . . 1 . . . . . . . . . . Alert Level 4 | . . . . . . . . . . 2 . . 2 . . Unreport Threat 5 | . . . . . 2 . . . . 3 . . . . . Zone Layout 1 | . . . . . . . . . . 1 . . . . . Fabricator Hacks 8 | . . . . . 4 . . . . 4 . . . . . Network Status 2 | . . . . . 1 . . . . 1 . . . . . Load Schematic 2 | . . . . . 1 . . . . 1 . . . . . Build 4 | . . . . . 2 . . . . 2 . . . . . Repair Station Hacks . | . . . . . . . . . . . . . . . . Recycling Unit Hacks . | . . . . . . . . . . . . . . . . Scanalyzer 8 | . . . 6 . . . . . . 2 . . . . . Insert Component 4 | . . . 3 . . . . . . 1 . . . . . Analyze 4 | . . . 3 . . . . . . 1 . . . . . Garrison Access Hacks 4 | . . . . 1 3 . . . . . . . . . . Seal Access 4 | . . . . 1 3 . . . . . . . . . . Unauthorized Hacks 9 | . . . . 1 5 . . . . 2 . . 1 . . Terminals 6 | . . . . 1 3 . . . . 1 . . 1 . . Assimilate 1 | . . . . . 1 . . . . . . . . . . Botnet 4 | . . . . . 2 . . . . 1 . . 1 . . Operators 1 | . . . . 1 . . . . . . . . . . . Fabricators . | . . . . . . . . . . . . . . . . Repair Stations . | . . . . . . . . . . . . . . . . Recycling Units 1 | . . . . . . . . . . 1 . . . . . Mask 1 | . . . . . . . . . . 1 . . . . . Scanalyzers . | . . . . . . . . . . . . . . . . Garrison Access 2 | . . . . . 2 . . . . . . . . . . Broadcast 1 | . . . . . 1 . . . . . . . . . . Watchers 1 | . . . . . 1 . . . . . . . . . . Data Cores Recovered . | . . . . . . . . . . . . . . . . Used . | . . . . . . . . . . . . . . . . Hacking Detections 30 | . . . 4 3 11 . . . . 7 . . 5 . . Full Trace Events 4 | . . . . . 2 . . . . 1 . . 1 . . Feedback Events . | . . . . . . . . . . . . . . . . Feedback Blocked . | . . . . . . . . . . . . . . . . Robot Schematics Acquired 2 | . . . 1 . . . . . . 1 . . . . . Robots Built 1 | . . . . . . . . . . 1 . . . . . Authchips . | . . . . . . . . . . . . . . . . Time 76 | . . . . . . . . . . 76 . . . . . Total Robot Build Rating 5 | . . . . . . . . . . 5 . . . . . Part Schematics Acquired 15 | . . . 3 1 4 . . . . 5 . . 2 . . Parts Built 6 | . . . . . 4 . . . . 2 . . . . . Authchips . | . . . . . . . . . . . . . . . . Time 194 | . . . . . 159 . . . . 35 . . . . . Total Part Build Rating 36 | . . . . . 24 . . . . 12 . . . . . Parts Repaired . | . . . . . . . . . . . . . . . . Time . | . . . . . . . . . . . . . . . . Parts Recycled . | . . . . . . . . . . . . . . . . Recycled Matter . | . . . . . . . . . . . . . . . . Retrieved Matter . | . . . . . . . . . . . . . . . . Retrieved Components . | . . . . . . . . . . . . . . . . Parts Scanalyzed 4 | . . . 3 . . . . . . 1 . . . . . Part Schematics Acquired 4 | . . . 3 . . . . . . 1 . . . . . Parts Damaged . | . . . . . . . . . . . . . . . . Bothacking | -11 -10 -10 -9 -8 -7 -7 -7 -7 -6 -6 -6 -6 -5 -5 -5 ------------ Run | Scr Mat Min Mat Mat Fac Low Low Zio Pro Fac Low Low Fac Upp Upp Used RIF Installer . | . . . . . . . . . . . . . . . . Robots Hacked 1 | . . 1 . . . . . . . . . . . . . Non-combat 1 | . . 1 . . . . . . . . . . . . . Combat . | . . . . . . . . . . . . . . . . Robot Hacks Applied 1 | . . 1 . . . . . . . . . . . . . no_distress 1 | . . 1 . . . . . . . . . . . . . Relay Couplers Released 7 | . . . . . . . . . . 7 . . . . . Machine Destruction 3 | . . . . . . . . . . 3 . . . . . Programmers 4 | . . . . . . . . . . 4 . . . . . Fabnet Peak Effective % . | . . . . . . . . . . . . . . . . Robots Rewired . | . . . . . . . . . . . . . . . . Allies Hacked . | . . . . . . . . . . . . . . . . Hacks Repelled . | . . . . . . . . . . . . . . . . Allies | -11 -10 -10 -9 -8 -7 -7 -7 -7 -6 -6 -6 -6 -5 -5 -5 -------- Run | Scr Mat Min Mat Mat Fac Low Low Zio Pro Fac Low Low Fac Upp Upp Total Allies 10 | . . . . . 1 . . 7 . 1 . 1 . . . Largest Group 7 | . . . . . 1 . . 7 7 3 . 1 . . . Highest-Rated Group 208 | . . . . . 26 . . 208 208 83 . 135 . . . Highest-Rated Ally 135 | . . . . . 26 . . 51 51 39 . 135 . . . Total Orders 3 | . . . . . 2 . . . . 1 . . . . . STAY 2 | . . . . . 1 . . . . 1 . . . . . FOLLOW 1 | . . . . . 1 . . . . . . . . . . Ally Attacks 76 | . . . . . . . . . 60 14 . 2 . . . Total Damage 1878 | . . . . . . . . . 1068 216 . 594 . . . Kills 20 | . . . . . . . . . 15 1 . 4 . . . Allies Corrupted . | . . . . . . . . . . . . . . . . Allies Melted . | . . . . . . . . . . . . . . . . Intel | -11 -10 -10 -9 -8 -7 -7 -7 -7 -6 -6 -6 -6 -5 -5 -5 ------- Run | Scr Mat Min Mat Mat Fac Low Low Zio Pro Fac Low Low Fac Upp Upp Robot Analysis Total . | . . . . . . . . . . . . . . . . Derelict Logs Recovered 7 | . . 2 . . . 1 1 1 . . 1 . . 1 . Drone Launches . | . . . . . . . . . . . . . . . . Drone Recoveries . | . . . . . . . . . . . . . . . . Exploration | -11 -10 -10 -9 -8 -7 -7 -7 -7 -6 -6 -6 -6 -5 -5 -5 ------------- Run | Scr Mat Min Mat Mat Fac Low Low Zio Pro Fac Low Low Fac Upp Upp Turns Passed 7230 | 79 133 662 622 547 990 220 97 451 302 1231 643 125 215 774 139 Spaces Moved 7166 | 51 45 399 293 337 1638 458 211 817 397 1031 464 95 254 566 110 Core 21 | 15 . . . . . . . . . . . 6 . . . Treads 158 | 36 45 77 . . . . . . . . . . . . . Legs 2146 | . . 322 293 86 . . . . . 374 434 31 . 524 82 Wheels 175 | . . . . 175 . . . . . . . . . . . Hover 4626 | . . . . 76 1638 458 211 817 397 657 30 58 214 42 28 Flight 40 | . . . . . . . . . . . . . 40 . . Fastest Speed 34 | 50 160 130 122 36 34 46 46 46 46 45 52 50 35 70 70 Average Speed 72 | 133 160 135 124 90 36 46 46 46 46 73 115 89 66 122 113 Slowest Speed 190 | 160 160 160 130 180 46 46 46 46 46 190 120 190 110 140 190 Overloaded Moves . | . . . . . . . . . . . . . . . . Propulsion Burnouts . | . . . . . . . . . . . . . . . . Robots Hopped . | . . . . . . . . . . . . . . . . Cave-ins Triggered . | . . . . . . . . . . . . . . . . Exploration Rate (%) 41 | 4 11 88 33 38 41 73 43 80 57 24 72 9 10 61 27 Regions Visited 15 Branch Regions 9 Pre-discovered Areas 8 | . . 2 . . . 1 . 5 . . . . . . . Known Exits Taken 3 | . . . . . 1 . . . . 1 . . 1 . . Unknown Exits Taken 12 | 1 1 1 1 1 . 1 1 1 1 . 1 1 . 1 . Scrap Searched 13 | . . . . . . 1 . 5 1 . 2 . . 4 . Spaces Dug 17 | . . . . . 6 . . . . 2 1 . 1 7 . Terrain Destroyed 216 | . 10 . 3 . 12 . . . 2 79 1 . 102 7 . Melee 17 | . . . . . 6 . . . . 2 1 . 1 7 . Projectile 13 | . . . . . 6 . . . 2 5 . . . . . AOE 186 | . 10 . 3 . . . . . . 72 . . 101 . . Terrain Rammed . | . . . . . . . . . . . . . . . . Walls Destroyed . | . . . . . . . . . . . . . . . . Machines Disabled . | . . . . . . . . . . . . . . . . Actions | -11 -10 -10 -9 -8 -7 -7 -7 -7 -6 -6 -6 -6 -5 -5 -5 --------- Run | Scr Mat Min Mat Mat Fac Low Low Zio Pro Fac Low Low Fac Upp Upp Total 8527 | 60 76 494 444 481 1916 464 210 892 499 1295 565 119 283 610 119 Wait 681 | . 13 64 53 52 125 . . 73 86 122 86 1 1 5 . Move 7151 | 50 44 398 292 336 1637 457 210 816 396 1030 463 94 253 565 110 Hop . | . . . . . . . . . . . . . . . . Pick Up 57 | 4 1 3 9 6 15 3 . 1 2 5 3 1 . 4 . Fast Attach 64 | 5 3 3 6 14 6 . . . . 5 1 6 5 10 . Attach 23 | 1 . . 2 1 4 . . . 1 4 3 3 1 2 1 Detach 9 | . . . 2 . . . . 1 . . . 1 2 1 2 Swap 55 | . 1 2 7 5 12 2 . . 2 18 3 2 . . 1 Drop 77 | . . 3 14 18 24 1 . 1 2 7 3 2 1 . 1 Fire 330 | . 14 12 57 49 71 . . . 10 102 . 3 12 . . Melee 49 | . . 2 . . 6 1 . . . 2 3 6 2 23 4 Ram . | . . . . . . . . . . . . . . . . Kick 2 | . . . 2 . . . . . . . . . . . . Crush . | . . . . . . . . . . . . . . . . Escape Stasis 22 | . . . . . 16 . . . . . . . 6 . . Rewire . | . . . . . . . . . . . . . . . . Trap 7 | . . 7 . . . . . . . . . . . . . Miscellaneous . | . . . . . . . . . . . . . . . . Route ------- -11/Scrapyard -10/Materials -10/Mines -9/Materials (discovered 2 exits: *Mat / *Min) -8/Materials -7/Factory (discovered 4 exits: *Fac x2 / *Low x2) -7/Lower Caves -7/Lower Caves -7/Zion -6/Proximity Caves -6/Factory (discovered 4 exits: *Low x2 / Ext x2) -6/Lower Caves -6/Lower Caves (discovered 2 exits: *Fac x2) -5/Factory (discovered 3 exits: [*Fac] / *Upp x2) -5/Upper Caves -5/Upper Caves History --------- Turn | Location | Event 10 | -11/Scrapyard | Discovered new exit (range 16) 80 | -11/Scrapyard | Entered Materials 199 | -10/Materials | Discovered new exit (range 5) 213 | -10/Materials | Entered Mines 312 | -10/Mines | Learned 2 Materials zone layouts 314 | -10/Mines | Build established: Mutant 329 | -10/Mines | Met a Derelict who couldn't figure out how to use a Trap Extractor 519 | -10/Mines | Learned location of Zion (-7) 859 | -10/Mines | Discovered new exit (range 8) 862 | -10/Mines | Learned location of Storage (-8) 875 | -10/Mines | Entered Materials 875 | -9/Materials | Evolved 2 slots: Propulsion x2 876 | -9/Materials | Identified exit to Mines 1382 | -9/Materials | Build established: Scavenger-Mutant 1412 | -9/Materials | Discovered new exit (range 17) 1497 | -9/Materials | Entered another Materials area 1497 | -8/Materials | Evolved 2 slots: Propulsion x1, Utility x1 1770 | -8/Materials | Destroyed 7 combat bots 1935 | -8/Materials | Destroyed 9 combat bots 2000 | -8/Materials | Discovered new exit (range 15) 2044 | -8/Materials | Entered Factory 2044 | -7/Factory | Evolved 2 slots: Utility x2 2058 | -7/Factory | Discovered new exit (range 4) 2377 | -7/Factory | Destroyed 7 combat bots 2468 | -7/Factory | Build established: Hacker-Mutant 2474 | -7/Factory | Discovered new exit (range 20) 2581 | -7/Factory | Noticed a derelict Sapper rigging charges 2737 | -7/Factory | Fabricated KE Penetrator (x2) 2748 | -7/Factory | Identified exit to Lower Caves 2861 | -7/Factory | Fabricated Cmb. Gravmag System? 2866 | -7/Factory | Build established: Scavenger-Mutant 3034 | -7/Factory | Entered Lower Caves 3174 | -7/Lower Caves | Build established: Hacker-Mutant 3245 | -7/Lower Caves | Discovered new exit (range 8) 3254 | -7/Lower Caves | Entered another Lower Caves area 3257 | -7/Lower Caves | Learned Factory terminal intel 3310 | -7/Lower Caves | Encountered a Warlord checkpoint 3338 | -7/Lower Caves | Discovered new exit (range 3) 3351 | -7/Lower Caves | Entered Zion 3368 | -7/Zion | Discovered new exit (range 18) 3398 | -7/Zion | System corruption cleaned by Quarantine Array 3413 | -7/Zion | Learned location of Warlord (-5) 3418 | -7/Zion | Gained Derelict followers 3428 | -7/Zion | Learned location of Data Miner (-6) 3494 | -7/Zion | Learned location of Extension (-6) 3500 | -7/Zion | Gained Derelict followers 3604 | -7/Zion | Given A8's code to call for help 3802 | -7/Zion | Entered Proximity Caves 3802 | -6/Proximity Caves | Accompanied by 7 allies 4062 | -6/Proximity Caves | Discovered new exit (range 12) 4104 | -6/Proximity Caves | Entered Factory 4104 | -6/Factory | Accompanied by 3 allies 4104 | -6/Factory | Evolved 2 slots: Utility x2 4105 | -6/Factory | Loaded intel: 28 terminal locations 4402 | -6/Factory | Fabricated A-15 Conveyor (x1) 4731 | -6/Factory | Lost 3 parts (2n1w) 4888 | -6/Factory | Fabricated Cmb. Gravmag System (x2) 5169 | -6/Factory | Cargo convoy interrupted 5265 | -6/Factory | Identified exit to Lower Caves 5265 | -6/Factory | Identified exit to Extension 5306 | -6/Factory | Spotted B-75 Beast 5335 | -6/Factory | Entered Lower Caves 5366 | -6/Lower Caves | Lost 3 parts (1p2n) 5374 | -6/Lower Caves | Encountered a Warlord checkpoint 5764 | -6/Lower Caves | Learned Factory security intel 5942 | -6/Lower Caves | Discovered new exit (range 15) 5978 | -6/Lower Caves | Entered another Lower Caves area 5996 | -6/Lower Caves | Discovered new exit (range 8) 6021 | -6/Lower Caves | Core integrity fell below 50% 6035 | -6/Lower Caves | 99-TNT showed up to help 6035 | -6/Lower Caves | Core integrity fell below 20% 6037 | -6/Lower Caves | 99-TNT revealed a hidden path 6068 | -6/Lower Caves | Lost 11 parts (1p3n5u2w) 6103 | -6/Lower Caves | Entered Factory 6103 | -5/Factory | Evolved 2 slots: Power x1, Utility x1 6129 | -5/Factory | Identified exit to Upper Caves 6197 | -5/Factory | Discovered new exit (range 14) 6318 | -5/Factory | Entered Upper Caves 6320 | -5/Upper Caves | Attracted the attention of an 0b10 checkpoint 6320 | -5/Upper Caves | Core integrity fell below 50% 6329 | -5/Upper Caves | Learned Factory emergency access door positions 6444 | -5/Upper Caves | Lost 4 parts (1p1n1u1w) 6686 | -5/Upper Caves | Spotted B-75 Beast 6731 | -5/Upper Caves | Build established: Scavenger-Mutant 7075 | -5/Upper Caves | Discovered new exit (range 9) 7089 | -5/Upper Caves | Attracted the attention of an 0b10 outpost 7092 | -5/Upper Caves | Entered another Upper Caves area 7216 | -5/Upper Caves | Core integrity fell below 20% 7231 | -5/Upper Caves | Destroyed by S-27 Virus with Autogun Last Messages --------------- 07191_ Lgt. Nuclear Core melted. 07191_ Autogun melted. 07191_ VTOL Module melted. 07191_ S-27 Virus destroyed. 07194_ Carbon-fiber Leg destroyed. 07195_ S-27 Virus heat damages core (-4). 07197_ Autogun fries itself beyond repair. 07198_ S-27 Virus destroyed. 07202_ Acquired 10 matter. 07203_ Carbon-fiber Leg destroyed. 07204_ Dropped Neutrino Core. 07206_ Adv. Targeting Computer destroyed. 07207_ Lgt. Nuclear Core fries itself beyond repair. 07208_ VTOL Module fries itself beyond repair. 07211_ Carbon-fiber Leg destroyed. 07211_ Adv. Heat Sink destroyed. 07211_ Critical hit (Burn: +37). 07227_ S-27 Virus suffers critical hit (Impale). 07227_ S-27 Virus destroyed. 07231_ Autogun fries itself beyond repair. Map ----- +----------------------------------------------------+ | ?????????????????????????????????????????????????? | | ?????????????????????????????????????????????????? | | ?????????????????????????????????????????????????? | | ???????????????????????????????????????????? #???? | | ???????????????????????????????????????????? ???? | | ??????????????????????????????????????????? ???? | | ??????????????????????????????????????????? ???? | | ???????????????????????????????????????????? ???? | | ???????????????????????????????????????????? #??? | | ???????????????????????????????????????????? #??? | | ????????????????????????? ???????????????? ##?? | | ????????????????????????? ???????????????? ### | | ????????????????????????? ????????????????# | | ???????????????????????? ????????????????# | | ???????????????????#????" ???????????###### #? | | ?????????????????## ???" ???????????? #?? | | ????????????????? ??" ?????????????? ### | | ?????????????????? "" #???????????????# ## | | ?????????????????? " """ #???????????????## #?# | | ????????????????? "" "" #???????????????## ### | | ???????????????? """ """ #??????????????## | | ????????????????? "" #?????????????## | | ??????????????? """ #????????????## % ##### | | ????????????# "" s ########?????# * ##???? | | ????????????# """ ??????# %%#????? | | ????????????# @ #???????????##% #????? | | ??????????# =%##????????????# #????? | | ?????????? ####??????????# #####? | | ?????????? ss ###????????# # ## | | ??????????? s #???????## | | ??????????? ####????# | | ???????????? #????# | | ???????????? ### #????# | | ???????????? ## ##?## ###### ## | | ????????????? ## #?# #???# ##?# | | ????????????? ??## ?# #???# #??? | | ?????????????????# ? #?# ##### | | ?????????????????# ## ###???# | | ?????????????????## ### ##?????## | | ??????????????????# ??###????????###### # | | ??????????????????##### #???????????????????#### | | ??????????????????????####???????????????????????? | | ?????????????????????????????????????????????????? | | ?????????????????????????????????????????????????? | | ?????????????????????????????????????????????????? | | ?????????????????????????????????????????????????? | | ?????????????????????????????????????????????????? | | ?????????????????????????????????????????????????? | | ?????????????????????????????????????????????????? | | ?????????????????????????????????????????????????? | +----------------------------------------------------+ Best States ------------- Heat Dissipation 59 Energy Generation 19 Energy Capacity 315 Matter Stores 300 Matter Capacity 300 Sight Range 22 Terrain Scan Density 10 Armor Coverage 150 Resistance: TH 25 Evasion (%) 63 Targeting Accuracy 8 Recoil Reduction 2 Offensive Hacking 31 Defensive Hacking 10 Item Schematics ----------------- Imp. Datajack | -9/Materials | Scanalyzed Hrd. Light Armor Plating | -9/Materials | Scanalyzed Shock Bomb Launcher | -9/Materials | Scanalyzed Hacking Suite | -8/Materials | Hacked Xenon Bombardment Thruster | -7/Factory | Hacked Gravmag Array | -7/Factory | Hacked Cmb. Gravmag System | -7/Factory | Hacked System Shield | -7/Factory | Hacked Imp. Gyrokinetic Inverter | -6/Factory | Hacked Mni. Drone Bay | -6/Factory | Hacked Cloaking Device | -6/Factory | Hacked Imp. Cooling System | -6/Factory | Scanalyzed Imp. Hacking Suite | -6/Factory | Hacked Enh. Gauss Cannon | -5/Factory | Hacked Adv. System Restoration Module | -5/Factory | Hacked Robot Schematics ------------------ M-13 Machinist | -9/Materials | Hacked G-47 Trooper | -6/Factory | Hacked Fabricated ------------ KE Penetrator | x2 | -7/Factory | Preloaded Cmb. Gravmag System | x2 | -7/Factory A-15 Conveyor | x1 | -6/Factory | Preloaded Cmb. Gravmag System | x2 | -6/Factory Alien Tech Used ----------------- None Achievements -------------- None Challenges ------------ None Game ------ Seed ChipAlloyPerforator Manual? 0 Play Time 01:33:33 Cumulative 195.6 hours Start 2022.10.01 @ 22:11:35 End 2022.10.01 @ 23:45:35 Sessions 1 Manual Loads 0 Difficulty Rogue Special Mode None Game No. 147 Rogue 144 Adventurer 3 Explorer 0 Win Type - Total 1 Types 1/0/0/0/0/0/0/0/0 Lore% 59 Gallery% 64 Achievement% 53 Wizard Run 0 Options --------- ASCII 0 Keyboard 0 Movement Numpad Keybinds 0 Fullscreen 1 Font 18/SmallcapsGlow Map View 76x50 Tactical HUD 1 Map Filters NONE Filters NONE Steam 1 RUN: 9c2bfe60-f925-4f3b-b472-3356c9f75611